[Event "Pobeskydi 2026"]
[Site "Frydek-Mistek, Czech Republic"]
[Date "2026.04.04"]
[Round "5.10"]
[White "Dobsa, Emma"]
[Black "Durovka, Marek"]
[Result "0-1"]
[TimeControl "90 min+30s/move"]
[WhiteTitle "-"]
[BlackTitle "-"]
[WhiteFideId "23709391"]
[BlackFideId "14959542"]
[WhiteElo "1921"]
[BlackElo "2054"]

1. e4 {[%clk 01:30:58]} {[%emt 00:00:02]} e6 {[%clk 01:30:34]} {[%emt
00:00:28]} 2. d4 {[%clk 01:31:19]} {[%emt 00:00:07]} d5 {[%clk 01:30:58]}
{[%emt 00:00:07]} 3. Nd2 {[%clk 01:31:43]} {[%emt 00:00:05]} c5 {[%clk
01:31:16]} {[%emt 00:00:12]} 4. Ngf3 {[%clk 01:31:58]} {[%emt 00:00:14]} cxd4
{[%clk 01:31:21]} {[%emt 00:00:25]} 5. Nxd4 {[%clk 01:32:20]} {[%emt 00:00:09]}
Nc6 {[%clk 01:30:56]} {[%emt 00:00:55]} 6. Bb5 {[%clk 01:32:31]} {[%emt
00:00:19]} Bd7 {[%clk 01:30:05]} {[%emt 00:01:21]} 7. Nxc6 {[%clk 01:32:45]}
{[%emt 00:00:16]} Bxc6 {[%clk 01:28:08]} {[%emt 00:02:27]} 8. Bxc6+ {[%clk
01:33:05]} {[%emt 00:00:10]} bxc6 {[%clk 01:28:36]} {[%emt 00:00:01]} 9. c4
{[%clk 01:21:55]} {[%emt 00:11:40]} d4 {[%clk 00:54:58]} {[%emt 00:34:08]} 10.
Nf3 {[%clk 01:19:24]} {[%emt 00:03:01]} c5 {[%clk 00:54:09]} {[%emt 00:01:20]}
11. Ne5 {[%clk 01:16:17]} {[%emt 00:03:37]} Qa5+ {[%clk 00:52:51]} {[%emt
00:01:47]} 12. Bd2 {[%clk 01:16:35]} {[%emt 00:00:12]} Qa6 {[%clk 00:53:04]}
{[%emt 00:00:19]} 13. Qf3 {[%clk 01:15:12]} {[%emt 00:01:52]} Qb7 {[%clk
00:46:45]} {[%emt 00:06:49]} 14. O-O {[%clk 01:13:57]} {[%emt 00:01:44]} Nf6
{[%clk 00:37:59]} {[%emt 00:09:16]} 15. Rfe1 {[%clk 01:06:24]} {[%emt
00:08:04]} Be7 {[%clk 00:25:29]} {[%emt 00:12:59]} 16. Qg3 {[%clk 00:58:46]}
{[%emt 00:08:08]} O-O {[%clk 00:16:12]} {[%emt 00:09:47]} 17. Bh6 {[%clk
00:52:14]} {[%emt 00:07:01]} Ne8 {[%clk 00:16:00]} {[%emt 00:00:43]} 18. Nd3
{[%clk 00:50:59]} {[%emt 00:01:44]} Kh8 {[%clk 00:13:46]} {[%emt 00:02:45]} 19.
Bd2 {[%clk 00:50:44]} {[%emt 00:00:45]} Rc8 {[%clk 00:10:33]} {[%emt 00:03:43]}
20. e5 {[%clk 00:47:57]} {[%emt 00:03:17]} Bd8 {[%clk 00:08:20]} {[%emt
00:02:43]} 21. b4 {[%clk 00:43:39]} {[%emt 00:04:48]} cxb4 {[%clk 00:06:56]}
{[%emt 00:01:54]} 22. Bxb4 {[%clk 00:43:59]} {[%emt 00:00:10]} Be7 {[%clk
00:07:13]} {[%emt 00:00:13]} 23. Rab1 {[%clk 00:43:04]} {[%emt 00:01:25]} Rxc4
{[%clk 00:03:53]} {[%emt 00:03:49]} 24. Bd6 {[%clk 00:38:21]} {[%emt 00:05:14]}
Qd7 {[%clk 00:04:12]} {[%emt 00:00:11]} 25. Rb8 {[%clk 00:38:09]} {[%emt
00:00:42]} Nxd6 {[%clk 00:03:40]} {[%emt 00:01:02]} 26. Rxf8+ Bxf8 {[%clk
00:04:09]} 27. exd6 {[%emt 00:00:03]} Qxd6 {[%clk 00:02:34]} {[%emt 00:02:04]}
28. Ne5 {[%clk 00:38:54]} {[%emt 00:00:32]} Qc7 {[%clk 00:02:35]} {[%emt
00:00:29]} 29. Nxc4 {[%clk 00:38:51]} {[%emt 00:00:32]} Qxc4 {[%clk 00:02:50]}
{[%emt 00:00:16]} 30. Qb8 {[%clk 00:38:43]} {[%emt 00:00:37]} Qc5 {[%clk
00:01:05]} {[%emt 00:02:15]} 31. g3 {[%clk 00:38:02]} {[%emt 00:01:11]} Kg8
{[%clk 00:01:10]} {[%emt 00:00:25]} 32. Rb1 {[%clk 00:35:30]} {[%emt 00:03:01]}
d3 {[%clk 00:00:39]} {[%emt 00:01:02]} 33. Qd8 {[%clk 00:34:08]} {[%emt
00:01:52]} Qc3 {[%clk 00:00:33]} {[%emt 00:00:33]} 34. Rd1 {[%clk 00:33:32]}
{[%emt 00:01:09]} Qc2 {[%clk 00:00:45]} {[%emt 00:00:19]} 35. Rxd3 {[%clk
00:33:53]} {[%emt 00:00:08]} Qxa2 {[%clk 00:01:14]} 36. h4 {[%clk 00:31:09]}
{[%emt 00:03:14]} Qb1+ {[%clk 00:01:18]} {[%emt 00:00:26]} 37. Rd1 {[%clk
00:31:03]} {[%emt 00:00:36]} Qb6 {[%clk 00:00:53]} {[%emt 00:00:55]} 38. Qa8
{[%clk 00:30:03]} {[%emt 00:01:30]} a5 {[%clk 00:00:46]} {[%emt 00:00:37]} 39.
Ra1 {[%clk 00:30:03]} {[%emt 00:00:29]} g6 {[%clk 00:00:34]} {[%emt 00:00:43]}
40. Rxa5 {[%clk 00:29:53]} {[%emt 00:00:41]} Kg7 {[%clk 00:00:58]} {[%emt
00:00:05]} 41. Ra1 {[%clk 00:29:13]} {[%emt 00:01:10]} Bc5 {[%clk 00:01:12]}
{[%emt 00:00:16]} 42. Qf3 {[%clk 00:29:28]} {[%emt 00:00:15]} Bd4 {[%clk
00:00:57]} {[%emt 00:00:44]} 43. Rd1 {[%clk 00:29:37]} {[%emt 00:00:20]} e5
{[%clk 00:01:08]} {[%emt 00:00:20]} 44. Kg2 {[%clk 00:27:13]} {[%emt 00:02:54]}
Qf6 {[%clk 00:01:10]} {[%emt 00:00:28]} 45. Qe2 {[%clk 00:27:09]} {[%emt
00:00:35]} Qc6+ {[%clk 00:01:12]} {[%emt 00:00:28]} 46. Kh2 {[%clk 00:26:59]}
{[%emt 00:00:40]} Qf6 {[%clk 00:00:56]} {[%emt 00:00:46]} 47. Rd2 {[%clk
00:27:10]} {[%emt 00:00:20]} h5 {[%clk 00:00:39]} {[%emt 00:00:46]} 48. Kg1
{[%clk 00:27:02]} {[%emt 00:00:38]} Qf5 {[%clk 00:00:50]} {[%emt 00:00:19]} 49.
Rd3 {[%clk 00:25:31]} {[%emt 00:02:01]} Kh7 {[%clk 00:00:34]} {[%emt 00:00:45]}
50. Rf3 {[%clk 00:25:38]} {[%emt 00:00:22]} Qb1+ {[%clk 00:00:43]} {[%emt
00:00:23]} 51. Kh2 {[%clk 00:25:42]} {[%emt 00:00:24]} Kg7 {[%clk 00:00:50]}
{[%emt 00:00:25]} 52. Qa6 {[%clk 00:25:22]} {[%emt 00:00:50]} Qb6 {[%clk
00:00:40]} {[%emt 00:00:40]} 53. Qc4 {[%clk 00:24:40]} {[%emt 00:01:11]} Qb7
{[%clk 00:00:50]} {[%emt 00:00:20]} 54. Rb3 {[%clk 00:24:09]} {[%emt 00:01:02]}
Qe4 {[%clk 00:00:34]} {[%emt 00:00:46]} 55. Qf1 {[%clk 00:19:11]} {[%emt
00:05:27]} Qc2 {[%clk 00:00:39]} {[%emt 00:00:25]} 56. Rf3 {[%clk 00:19:22]}
{[%emt 00:00:19]} e4 {[%clk 00:00:44]} {[%emt 00:00:27]} 57. Ra3 {[%clk
00:11:25]} {[%emt 00:08:26]} Bxf2 {[%clk 00:00:38]} {[%emt 00:00:36]} 58. Kh3
{[%clk 00:09:41]} {[%emt 00:02:14]} Qc5 {[%clk 00:00:38]} {[%emt 00:00:30]} 59.
Ra4 {[%clk 00:07:53]} {[%emt 00:02:18]} Qf5+ {[%clk 00:00:57]} {[%emt
00:00:10]} 60. Kh2 {[%clk 00:07:29]} {[%emt 00:00:54]} Bxg3+ {[%clk 00:01:22]}
{[%emt 00:00:05]} 61. Kg2 {[%clk 00:07:56]} {[%emt 00:00:03]} Qxf1+ {[%clk
00:01:04]} {[%emt 00:00:48]} 62. Kxf1 {[%clk 00:08:24]} {[%emt 00:00:03]} f5
{[%clk 00:01:26]} {[%emt 00:00:08]} 63. Ra7+ {[%clk 00:08:40]} {[%emt
00:00:14]} Kh6 {[%clk 00:01:42]} {[%emt 00:00:14]} 64. Kg2 {[%clk 00:09:00]}
{[%emt 00:00:09]} Bxh4 {[%clk 00:02:03]} {[%emt 00:00:10]} 65. Ra4 {[%clk
00:09:09]} {[%emt 00:00:21]} Bf6 {[%clk 00:02:21]} {[%emt 00:00:12]} 66. Ra6
{[%clk 00:09:30]} {[%emt 00:00:09]} Kg5 {[%clk 00:02:45]} {[%emt 00:00:05]} 67.
Kf2 {[%clk 00:09:50]} {[%emt 00:00:10]} Be5 {[%clk 00:02:30]} {[%emt 00:00:46]}
68. Ra5 {[%clk 00:10:01]} {[%emt 00:00:19]} Kf4 {[%clk 00:02:46]} {[%emt
00:00:14]} 69. Ra3 {[%clk 00:10:18]} {[%emt 00:00:12]} Bd4+ {[%clk 00:03:02]}
{[%emt 00:00:14]} 70. Kg2 {[%clk 00:10:40]} {[%emt 00:00:08]} g5 {[%clk
00:03:14]} {[%emt 00:00:18]} 71. Rh3 {[%clk 00:10:58]} {[%emt 00:00:11]} h4
{[%clk 00:03:39]} {[%emt 00:00:07]} 72. Rh1 {[%clk 00:11:15]} {[%emt 00:00:11]}
Kg4 {[%clk 00:03:58]} {[%emt 00:00:12]} 73. Re1 {[%clk 00:11:33]} {[%emt
00:00:12]} h3+ {[%clk 00:04:22]} {[%emt 00:00:07]} 74. Kh1 {[%clk 00:11:49]}
{[%emt 00:00:14]} Bf2 {[%clk 00:04:24]} {[%emt 00:00:28]} 75. Re2 {[%clk
00:12:09]} {[%emt 00:00:10]} Kf3 {[%clk 00:04:50]} {[%emt 00:00:04]} 76. Ra2
{[%clk 00:12:27]} {[%emt 00:00:12]} e3 {[%clk 00:05:01]} {[%emt 00:00:19]} 77.
Ra3 {[%clk 00:12:39]} {[%emt 00:00:18]} g4 {[%clk 00:04:54]} {[%emt 00:00:37]}
78. Rb3 {[%clk 00:13:02]} {[%emt 00:00:07]} Be1 {[%clk 00:05:07]} {[%emt
00:00:15]} 79. Rb1 {[%clk 00:13:00]} {[%emt 00:00:33]} Kf2 {[%clk 00:04:54]}
{[%emt 00:00:43]} 80. Rb5 {[%clk 00:12:46]} {[%emt 00:00:44]} f4 {[%clk
00:05:03]} {[%emt 00:00:21]} 81. Rg5 {[%clk 00:12:50]} {[%emt 00:00:26]} Kf3
{[%clk 00:04:44]} {[%emt 00:00:50]} 82. Rb5 {[%clk 00:12:43]} {[%emt 00:00:37]}
g3 {[%clk 00:04:49]} {[%emt 00:00:25]} 83. Rg5 {[%clk 00:12:57]} {[%emt
00:00:16]} g2+ {[%clk 00:05:13]} {[%emt 00:00:06]} 84. Kh2 {[%clk 00:12:55]}
{[%emt 00:00:32]} Bg3+ {[%clk 00:05:36]} {[%emt 00:00:07]} 0-1

[Event "Pobeskydi 2026"]
[Site "Frydek-Mistek, Czech Republic"]
[Date "2026.04.04"]
[Round "5.11"]
[White "Bjolek, Jan"]
[Black "Vancakova, Veronika"]
[Result "1/2-1/2"]
[TimeControl "90 min+30s/move"]
[WhiteTitle "-"]
[BlackTitle "-"]
[WhiteFideId "23725800"]
[BlackFideId "23731907"]
[WhiteElo "2026"]
[BlackElo "1937"]

1. d4 {[%clk 01:30:58]} {[%emt 00:00:01]} Nf6 {[%clk 01:30:53]} {[%emt
00:00:08]} 2. Bf4 {[%clk 01:31:23]} {[%emt 00:00:05]} d6 {[%clk 01:31:00]}
{[%emt 00:00:23]} 3. Nc3 {[%clk 01:31:37]} {[%emt 00:00:16]} Nbd7 {[%clk
01:31:09]} {[%emt 00:00:21]} 4. Nf3 {[%clk 01:31:28]} {[%emt 00:00:39]} c6
{[%clk 01:28:24]} {[%emt 00:03:15]} 5. e4 {[%clk 01:24:07]} {[%emt 00:07:50]}
Qa5 {[%clk 01:22:06]} {[%emt 00:06:49]} 6. Qd2 {[%clk 01:11:15]} {[%emt
00:13:22]} e5 {[%clk 01:22:14]} {[%emt 00:00:21]} 7. Bg3 {[%clk 01:08:41]}
{[%emt 00:03:05]} Be7 {[%clk 01:13:14]} {[%emt 00:09:31]} 8. a3 {[%clk
00:49:44]} {[%emt 00:19:27]} O-O {[%clk 01:12:50]} {[%emt 00:00:53]} 9. Bd3
{[%clk 00:29:45]} {[%emt 00:20:29]} Re8 {[%clk 01:10:13]} {[%emt 00:03:08]} 10.
O-O {[%clk 00:29:20]} {[%emt 00:00:54]} Qc7 {[%clk 01:09:50]} {[%emt 00:00:53]}
11. Rfe1 {[%clk 00:25:31]} {[%emt 00:04:19]} Nh5 {[%clk 01:08:00]} {[%emt
00:02:20]} 12. dxe5 {[%clk 00:18:17]} {[%emt 00:07:45]} dxe5 {[%clk 01:07:53]}
{[%emt 00:00:37]} 13. Bc4 {[%clk 00:18:29]} {[%emt 00:00:18]} Nxg3 {[%clk
01:06:04]} {[%emt 00:02:19]} 14. hxg3 {[%clk 00:18:57]} {[%emt 00:00:01]} b5
{[%clk 01:04:40]} {[%emt 00:01:53]} 15. Ba2 {[%clk 00:15:26]} {[%emt 00:04:01]}
Nc5 {[%clk 00:59:48]} {[%emt 00:05:22]} 16. Nd1 {[%clk 00:09:12]} {[%emt
00:06:44]} h6 {[%clk 00:52:16]} {[%emt 00:08:03]} 17. Qc3 {[%clk 00:08:32]}
{[%emt 00:01:10]} Bf8 {[%clk 00:46:14]} {[%emt 00:06:32]} 18. Nh4 {[%clk
00:05:44]} {[%emt 00:03:18]} Kh7 {[%clk 00:44:08]} {[%emt 00:02:36]} 19. Qf3
{[%clk 00:04:43]} {[%emt 00:01:31]} Be6 {[%clk 00:41:01]} {[%emt 00:03:37]} 20.
Bxe6 {[%clk 00:03:40]} {[%emt 00:01:33]} Nxe6 {[%clk 00:40:37]} {[%emt
00:00:54]} 21. Qc3 {[%clk 00:01:37]} {[%emt 00:02:33]} Nc5 {[%clk 00:36:14]}
{[%emt 00:04:52]} 22. b4 {[%clk 00:01:14]} {[%emt 00:00:54]} Na4 {[%clk
00:33:33]} {[%emt 00:03:11]} 23. Qb3 {[%clk 00:01:34]} {[%emt 00:00:10]} Red8
{[%clk 00:21:02]} {[%emt 00:13:00]} 24. Ne3 {[%clk 00:01:55]} {[%emt 00:00:09]}
Rd4 {[%clk 00:19:53]} {[%emt 00:01:39]} 25. Nf3 {[%clk 00:01:38]} {[%emt
00:00:48]} Rd7 {[%clk 00:16:24]} {[%emt 00:03:58]} 26. c4 {[%clk 00:02:04]}
{[%emt 00:00:04]} Rad8 {[%clk 00:13:13]} {[%emt 00:03:40]} 27. cxb5 {[%clk
00:02:27]} {[%emt 00:00:07]} cxb5 {[%clk 00:13:39]} {[%emt 00:00:04]} 28. Rac1
{[%clk 00:02:26]} {[%emt 00:00:32]} Qb8 {[%clk 00:13:53]} {[%emt 00:00:15]} 29.
Nd5 {[%clk 00:02:23]} {[%emt 00:00:34]} f6 {[%clk 00:12:27]} {[%emt 00:01:56]}
30. Rc6 {[%clk 00:01:28]} {[%emt 00:01:25]} Rd6 {[%clk 00:05:47]} {[%emt
00:07:09]} 31. Rec1 {[%clk 00:01:27]} {[%emt 00:00:31]} Rxc6 {[%clk 00:05:45]}
{[%emt 00:00:32]} 32. Rxc6 {[%clk 00:01:55]} {[%emt 00:00:02]} Nb6 {[%clk
00:01:10]} {[%emt 00:05:05]} 33. Nxb6 {[%clk 00:02:14]} {[%emt 00:00:11]} axb6
{[%clk 00:01:35]} {[%emt 00:00:05]} 34. Qf7 {[%clk 00:02:05]} {[%emt 00:00:39]}
Rd1+ {[%clk 00:00:52]} {[%emt 00:01:13]} 35. Kh2 {[%clk 00:02:35]} Qd8 {[%clk
00:00:59]} {[%emt 00:00:23]} 36. Rc7 {[%clk 00:02:45]} {[%emt 00:00:20]} Rf1
{[%clk 00:00:42]} {[%emt 00:00:46]} 37. Rd7 {[%clk 00:00:43]} {[%emt 00:02:33]}
Qc8 {[%clk 00:00:45]} {[%emt 00:00:26]} 38. Nh4 {[%clk 00:00:34]} {[%emt
00:00:40]} Rxf2 {[%clk 00:00:36]} {[%emt 00:00:39]} 39. Qg6+ {[%clk 00:00:33]}
{[%emt 00:00:31]} Kh8 {[%clk 00:00:38]} {[%emt 00:00:28]} 40. Rf7 {[%clk
00:00:40]} {[%emt 00:00:23]} Qd8 {[%clk 00:00:32]} {[%emt 00:00:36]} 41. Nf5
{[%clk 00:00:44]} {[%emt 00:00:27]} Rxf5 {[%clk 00:00:35]} {[%emt 00:00:27]} 42.
Qxf5 {[%clk 00:00:53]} {[%emt 00:00:21]} Kg8 {[%clk 00:00:35]} {[%emt
00:00:30]} 43. Qe6 {[%clk 00:01:04]} {[%emt 00:00:19]} Kh7 {[%clk 00:00:35]}
{[%emt 00:00:29]} 44. Qd7 {[%clk 00:01:13]} {[%emt 00:00:21]} Qa8 {[%clk
00:00:48]} {[%emt 00:00:18]} 45. Qb7 {[%clk 00:01:30]} {[%emt 00:00:12]} Qd8
{[%clk 00:00:54]} {[%emt 00:00:24]} 46. Rd7 {[%clk 00:01:57]} {[%emt 00:00:04]}
Qe8 {[%clk 00:01:05]} {[%emt 00:00:18]} 47. g4 {[%clk 00:00:51]} {[%emt
00:01:36]} Qg6 {[%clk 00:00:41]} {[%emt 00:00:53]} 48. Qd5 {[%clk 00:00:35]}
{[%emt 00:00:46]} Qxg4 {[%clk 00:00:50]} {[%emt 00:00:21]} 49. Qd1 {[%clk
00:00:36]} {[%emt 00:00:29]} Qf4+ {[%clk 00:01:02]} {[%emt 00:00:18]} 50. Kh1
{[%clk 00:00:41]} {[%emt 00:00:25]} Qh4+ {[%clk 00:00:47]} {[%emt 00:00:44]} 51.
Kg1 {[%clk 00:01:10]} {[%emt 00:00:02]} Qg3 {[%clk 00:00:44]} {[%emt 00:00:32]}
52. Rd8 {[%clk 00:00:40]} {[%emt 00:01:01]} Be7 {[%clk 00:00:43]} {[%emt
00:00:31]} 53. Re8 {[%clk 00:00:54]} {[%emt 00:00:16]} Bd6 {[%clk 00:00:44]}
{[%emt 00:00:29]} 54. Qf3 {[%clk 00:00:59]} {[%emt 00:00:25]} Qe1+ {[%clk
00:00:57]} {[%emt 00:00:17]} 55. Kh2 {[%clk 00:01:19]} {[%emt 00:00:10]} Qh4+
{[%clk 00:01:21]} {[%emt 00:00:06]} 56. Kg1 {[%clk 00:01:04]} {[%emt 00:00:45]}
Qe1+ {[%clk 00:01:44]} {[%emt 00:00:06]} 57. Kh2 {[%clk 00:00:51]} {[%emt
00:00:43]} Qh4+ {[%clk 00:02:09]} {[%emt 00:00:05]} 58. Kg1 {[%clk 00:00:41]}
{[%emt 00:00:40]} Qe1+ {[%clk 00:02:37]} {[%emt 00:00:03]} 59. Kh2 {[%clk
00:01:07]} {[%emt 00:00:03]} Qh4+ {[%clk 00:02:57]} {[%emt 00:00:10]} 60. Kg1
{[%clk 00:01:06]} {[%emt 00:00:31]} 1/2-1/2

[Event "Pobeskydi 2026"]
[Site "Frydek-Mistek, Czech Republic"]
[Date "2026.04.04"]
[Round "6.1"]
[White "Gnojek, Petr"]
[Black "Karas, Marek"]
[Result "1-0"]
[TimeControl "90 min+30s/move"]
[WhiteTitle "-"]
[BlackTitle "-"]
[WhiteFideId "371807"]
[BlackFideId "14928558"]
[WhiteElo "2401"]
[BlackElo "2232"]

1. d4 {[%clk 01:30:55]} {[%emt 00:00:03]} d5 {[%clk 01:30:46]} {[%emt
00:00:14]} 2. c4 {[%clk 01:31:13]} {[%emt 00:00:12]} c6 {[%clk 01:30:19]}
{[%emt 00:00:57]} 3. Nf3 {[%clk 01:31:30]} {[%emt 00:00:14]} e6 {[%clk
01:30:34]} {[%emt 00:00:14]} 4. Nc3 {[%clk 01:31:44]} {[%emt 00:00:17]} dxc4
{[%clk 01:30:54]} {[%emt 00:00:10]} 5. a4 {[%clk 01:32:04]} {[%emt 00:00:10]}
Bb4 {[%clk 01:31:08]} {[%emt 00:00:16]} 6. e3 {[%clk 01:32:21]} {[%emt
00:00:13]} b5 {[%clk 01:31:20]} {[%emt 00:00:18]} 7. Bd2 {[%clk 01:32:42]}
{[%emt 00:00:10]} a5 {[%clk 01:31:30]} {[%emt 00:00:19]} 8. axb5 {[%clk
01:33:03]} {[%emt 00:00:09]} Bxc3 {[%clk 01:31:53]} {[%emt 00:00:07]} 9. Bxc3
{[%clk 01:33:27]} {[%emt 00:00:06]} cxb5 {[%clk 01:32:17]} {[%emt 00:00:06]} 10.
b3 {[%clk 01:33:50]} {[%emt 00:00:07]} Bb7 {[%clk 01:32:37]} {[%emt 00:00:09]}
11. bxc4 {[%clk 01:34:12]} {[%emt 00:00:09]} b4 {[%clk 01:33:03]} {[%emt
00:00:04]} 12. Bb2 {[%clk 01:34:35]} {[%emt 00:00:07]} Nf6 {[%clk 01:33:23]}
{[%emt 00:00:10]} 13. c5 {[%clk 01:34:44]} {[%emt 00:00:22]} O-O {[%clk
01:33:41]} {[%emt 00:00:11]} 14. Bb5 {[%clk 01:35:05]} {[%emt 00:00:09]} Bc6
{[%clk 01:34:01]} {[%emt 00:00:10]} 15. Ba4 {[%clk 01:35:20]} {[%emt 00:00:15]}
Bxa4 {[%clk 01:34:24]} {[%emt 00:00:08]} 16. Rxa4 {[%clk 01:31:11]} {[%emt
00:04:39]} Qd5 {[%clk 01:33:12]} {[%emt 00:01:41]} 17. O-O {[%clk 01:25:16]}
{[%emt 00:06:25]} Nc6 {[%clk 01:33:11]} {[%emt 00:00:31]} 18. Qe2 {[%clk
01:13:09]} {[%emt 00:12:37]} Ne4 {[%clk 01:28:30]} {[%emt 00:05:12]} 19. Rfa1
{[%clk 01:12:53]} {[%emt 00:00:46]} f5 {[%clk 01:22:52]} {[%emt 00:06:07]} 20.
Ne1 {[%clk 01:08:58]} {[%emt 00:04:26]} e5 {[%clk 01:20:08]} {[%emt 00:03:13]}
21. f3 {[%clk 01:08:37]} {[%emt 00:00:52]} Nc3 {[%clk 01:17:21]} {[%emt
00:03:17]} 22. Bxc3 {[%clk 01:08:53]} {[%emt 00:00:14]} bxc3 {[%clk 01:17:50]}
{[%emt 00:00:01]} 23. Qc4 {[%clk 01:08:46]} {[%emt 00:00:37]} Rfd8 {[%clk
01:16:28]} {[%emt 00:01:52]} 24. Nc2 {[%clk 00:59:15]} {[%emt 00:10:01]} Qxc4
{[%clk 01:11:16]} {[%emt 00:05:41]} 25. Rxc4 {[%clk 00:59:35]} {[%emt
00:00:10]} f4 {[%clk 01:11:41]} {[%emt 00:00:06]} 26. dxe5 {[%clk 00:58:52]}
{[%emt 00:01:13]} Nxe5 {[%clk 01:06:33]} {[%emt 00:05:36]} 27. Rxc3 {[%clk
00:59:15]} {[%emt 00:00:08]} fxe3 {[%clk 01:06:47]} {[%emt 00:00:16]} 28. Nxe3
{[%clk 00:57:59]} {[%emt 00:01:46]} Nc6 {[%clk 01:04:25]} {[%emt 00:02:52]} 29.
Nc4 {[%clk 00:48:18]} {[%emt 00:10:11]} Rd4 {[%clk 01:03:48]} {[%emt 00:01:07]}
30. Kf2 {[%clk 00:47:45]} {[%emt 00:01:03]} h6 {[%clk 01:01:53]} {[%emt
00:02:25]} 31. g4 {[%clk 00:46:51]} {[%emt 00:01:24]} Ra7 {[%clk 00:53:08]}
{[%emt 00:09:15]} 32. Kg3 {[%clk 00:45:13]} {[%emt 00:02:08]} Rd5 {[%clk
00:51:54]} {[%emt 00:01:43]} 33. Nb6 {[%clk 00:44:25]} {[%emt 00:01:19]} Rd2
{[%clk 00:52:04]} {[%emt 00:00:20]} 34. Re1 {[%clk 00:44:01]} {[%emt 00:00:54]}
a4 {[%clk 00:49:02]} {[%emt 00:03:32]} 35. Ra3 {[%clk 00:40:13]} {[%emt
00:04:18]} Rc2 {[%clk 00:46:41]} {[%emt 00:02:50]} 36. Rxa4 {[%clk 00:40:24]}
{[%emt 00:00:20]} Rxc5 {[%clk 00:46:30]} {[%emt 00:00:41]} 37. Rxa7 {[%clk
00:38:44]} {[%emt 00:02:10]} Nxa7 {[%clk 00:46:58]} {[%emt 00:00:02]} 38. Re7
{[%clk 00:38:40]} {[%emt 00:00:34]} Nb5 {[%clk 00:46:47]} {[%emt 00:00:41]} 39.
Nd7 {[%clk 00:38:20]} {[%emt 00:00:49]} Rc3 {[%clk 00:38:24]} {[%emt 00:08:53]}
40. Ne5 {[%clk 00:36:01]} {[%emt 00:02:50]} Re3 {[%clk 00:33:40]} {[%emt
00:05:13]} 41. Kf4 {[%clk 00:34:43]} {[%emt 00:01:49]} Re2 {[%clk 00:33:42]}
{[%emt 00:00:27]} 42. h4 {[%clk 00:34:18]} {[%emt 00:00:56]} Nc3 {[%clk
00:30:13]} {[%emt 00:03:59]} 43. Re8+ {[%clk 00:29:42]} {[%emt 00:05:06]} Kh7
{[%clk 00:30:42]} 44. Rd8 {[%clk 00:30:07]} {[%emt 00:00:06]} Re1 {[%clk
00:29:15]} {[%emt 00:01:58]} 45. h5 {[%clk 00:25:10]} {[%emt 00:05:26]} Rd1
{[%clk 00:28:45]} {[%emt 00:00:59]} 46. Ra8 {[%clk 00:25:15]} {[%emt 00:00:25]}
Nd5+ {[%clk 00:27:50]} {[%emt 00:01:25]} 47. Kf5 {[%clk 00:21:55]} {[%emt
00:03:51]} Nf6 {[%clk 00:26:30]} {[%emt 00:01:49]} 48. f4 {[%clk 00:21:56]}
{[%emt 00:00:29]} Rf1 {[%clk 00:25:38]} {[%emt 00:01:22]} 49. Nf7 {[%clk
00:22:12]} {[%emt 00:00:13]} Ng8 {[%clk 00:25:51]} {[%emt 00:00:17]} 50. g5
{[%clk 00:17:51]} {[%emt 00:04:51]} hxg5 {[%clk 00:25:38]} {[%emt 00:00:42]} 51.
Nxg5+ {[%clk 00:18:16]} {[%emt 00:00:05]} Kh8 {[%clk 00:25:41]} {[%emt
00:00:27]} 52. Kg6 {[%clk 00:18:39]} {[%emt 00:00:07]} Rg1 {[%clk 00:25:56]}
{[%emt 00:00:15]} 53. Kf7 {[%clk 00:19:04]} {[%emt 00:00:06]} 1-0

[Event "Pobeskydi 2026"]
[Site "Frydek-Mistek, Czech Republic"]
[Date "2026.04.04"]
[Round "6.2"]
[White "Walek, Petr"]
[Black "Skorupa, Tobias"]
[Result "1-0"]
[TimeControl "90 min+30s/move"]
[WhiteTitle "-"]
[BlackTitle "-"]
[WhiteFideId "339393"]
[BlackFideId "23777494"]
[WhiteElo "2304"]
[BlackElo "1859"]

1. e4 {[%clk 01:30:58]} {[%emt 00:00:02]} e5 {[%clk 01:30:19]} {[%emt
00:00:42]} 2. d4 {[%clk 01:31:16]} {[%emt 00:00:11]} exd4 {[%clk 01:30:37]}
{[%emt 00:00:12]} 3. Qxd4 {[%clk 01:31:41]} {[%emt 00:00:05]} Nc6 {[%clk
01:30:38]} {[%emt 00:00:29]} 4. Qd3 {[%clk 01:32:07]} {[%emt 00:00:05]} Nf6
{[%clk 01:30:08]} {[%emt 00:00:59]} 5. Nc3 {[%clk 01:32:31]} {[%emt 00:00:06]}
Bc5 {[%clk 01:28:03]} {[%emt 00:02:35]} 6. Bf4 {[%clk 01:32:52]} {[%emt
00:00:10]} d6 {[%clk 01:27:41]} {[%emt 00:00:52]} 7. Qd2 {[%clk 01:32:33]}
{[%emt 00:00:49]} O-O {[%clk 01:25:53]} {[%emt 00:02:19]} 8. O-O-O {[%clk
01:32:31]} {[%emt 00:00:32]} a6 {[%clk 01:21:42]} {[%emt 00:04:41]} 9. f3
{[%clk 01:29:56]} {[%emt 00:03:05]} b5 {[%emt 00:02:13]} 10. Bg5 {[%clk
01:19:39]} {[%emt 00:10:46]} Be6 {[%clk 01:14:05]} {[%emt 00:06:25]} 11. Nge2
{[%clk 01:12:31]} {[%emt 00:07:38]} h6 {[%clk 01:09:37]} {[%emt 00:04:58]} 12.
Be3 {[%clk 01:03:47]} {[%emt 00:09:14]} Bxe3 {[%clk 01:01:27]} {[%emt
00:08:39]} 13. Qxe3 {[%clk 01:04:14]} {[%emt 00:00:04]} Qe7 {[%clk 01:00:38]}
{[%emt 00:01:19]} 14. Nf4 {[%clk 00:54:34]} {[%emt 00:10:10]} Ne5 {[%emt
00:02:53]} 15. g4 {[%clk 00:48:01]} {[%emt 00:07:01]} Nc4 {[%clk 00:53:25]}
{[%emt 00:05:22]} 16. Bxc4 {[%clk 00:47:52]} {[%emt 00:00:39]} Bxc4 {[%clk
00:51:52]} {[%emt 00:02:03]} 17. Rhg1 {[%clk 00:39:19]} {[%emt 00:09:02]} b4
{[%clk 00:46:39]} {[%emt 00:05:43]} 18. Ncd5 {[%clk 00:39:21]} {[%emt
00:00:29]} Bxd5 {[%clk 00:44:33]} {[%emt 00:02:35]} 19. Nxd5 {[%clk 00:39:35]}
{[%emt 00:00:16]} Nxd5 {[%clk 00:44:43]} {[%emt 00:00:20]} 20. Rxd5 {[%clk
00:40:04]} {[%emt 00:00:02]} c6 {[%clk 00:41:08]} {[%emt 00:04:04]} 21. Rh5
{[%clk 00:36:55]} {[%emt 00:03:39]} Qe6 {[%clk 00:39:35]} {[%emt 00:02:03]} 22.
g5 {[%clk 00:31:51]} {[%emt 00:05:34]} Qxa2 {[%clk 00:35:01]} {[%emt 00:05:04]}
23. gxh6 {[%clk 00:27:37]} {[%emt 00:04:44]} g6 {[%clk 00:31:25]} {[%emt
00:04:05]} 24. Qd4 {[%clk 00:27:06]} {[%emt 00:01:01]} f6 {[%clk 00:26:26]}
{[%emt 00:05:29]} 25. Rxg6+ {[%clk 00:27:14]} {[%emt 00:00:22]} Kh7 {[%clk
00:26:36]} {[%emt 00:00:21]} 26. Rg7+ {[%clk 00:20:22]} {[%emt 00:07:22]} Kh8
{[%clk 00:27:03]} {[%emt 00:00:02]} 27. Kd2 {[%clk 00:19:40]} {[%emt 00:01:11]}
Qe6 {[%clk 00:23:29]} {[%emt 00:04:05]} 28. Qg1 {[%clk 00:18:15]} {[%emt
00:01:55]} Rg8 {[%clk 00:21:20]} {[%emt 00:02:39]} 29. Qg6 {[%clk 00:18:14]}
{[%emt 00:00:31]} 1-0